fUST/lending_fUST_20240411
["ID","MTS","AMOUNT","RATE_DAILY","PERIOD"]
[322130005,1712827644132,-398.12018518,0.00036098,7]
[322130006,1712827644155,-398.12018518,0.00036347,7]
[322130007,1712827644176,-200.0,0.00036529,120]
[322130008,1712827644199,-202.8348577,0.00036666,2]
[322130009,1712827644222,-202.8348577,0.00036666,2]
[322130010,1712827644243,-202.8348577,0.00036666,2]
[322130011,1712827644264,-202.8348577,0.00036666,2]
[322130012,1712827644288,-2114.60420043,0.00037155,2]
[322130013,1712827644310,-398.12018518,0.00037156,7]
[322130014,1712827644330,-398.12018518,0.00037191,7]
[322130015,1712827644352,-169.0,0.00037656,2]
[322130016,1712827644520,-1332.13441236,0.0003776,6]
[322130017,1712827644543,-1332.001332,0.0003776,6]
[322130018,1712827644563,-153.0,0.00037869,2]
[322130019,1712827644583,-153.0,0.00037869,2]
[322130020,1712827644604,-153.0,0.00037869,2]
[322130021,1712827644628,-153.0,0.00037869,2]
[322130022,1712827644648,-153.0,0.00037869,2]
[322130023,1712827644670,-153.0,0.00037869,2]
[322130024,1712827644691,-153.0,0.00037869,2]
[322130025,1712827644713,-153.0,0.00037869,2]
[322130026,1712827644737,-153.0,0.00037869,2]
[322130027,1712827644759,-153.0,0.00037869,2]
[322130028,1712827644781,-153.7270595,0.00037869,2]
[322130029,1712827644802,-169.0,0.00037973,2]
[322130030,1712827644824,-398.12018518,0.00038163,7]
[322130031,1712827644846,-306.0,0.00038235,2]
[322130032,1712827644866,-398.12018518,0.00038247,7]
[322130033,1712827644886,-400.49058297,0.00038356,2]
[322130034,1712827644909,-398.12018518,0.0003837,7]
[322130035,1712827644931,-200.0,0.00038448,120]
[322130036,1712827644952,-398.12018518,0.00038467,7]
[322130037,1712827644972,-398.12018518,0.00038625,7]
[322130038,1712827644992,-2696.57676849,0.00038649,30]
[322130039,1712827645012,-783.0,0.00038719,3]
[322130040,1712827645035,-398.12018518,0.00038856,7]
[322130041,1712827645055,-203.02029428,0.00038898,17]
[322130042,1712827645077,-557.08377992,0.000389,2]
[322130043,1712827645101,-380.174203,0.00038933,2]
[322130044,1712827645122,-238.659097,0.00038933,2]
[322130045,1712827645143,-310.747655,0.00038933,2]
[322130046,1712827645167,-461.96198112,0.00038948,7]
[322130047,1712827645188,-275.38556658,0.0003898,120]
[322130048,1712827645212,-154.93802479,0.00038998,4]
[322130049,1712827645232,-155.11059151,0.00038998,4]
[322130050,1712827645257,-157.13260649,0.00038998,4]
[322130051,1712827645280,-155.97000402,0.00038998,5]
[322130052,1712827645300,-185.3582892,0.00038998,4]
[322130053,1712827645329,-1605.62406774,0.00038998,120]
[322130054,1712827645354,-249.08303124,0.00038998,4]
[322130055,1712827645379,-156.54809607,0.00038998,4]
[322130056,1712827645400,-276.96705132,0.00038998,4]
[322130057,1712827645420,-261.67665701,0.00038998,4]
[322130058,1712827645441,-157.26509838,0.00038998,4]
[322130059,1712827645461,-253.46233178,0.00038998,4]
[322130060,1712827645484,-1317.64238864,0.00038998,4]
[322130061,1712827645504,-157.74622778,0.00038998,4]
[322130062,1712827645527,-215.70131407,0.00038998,4]
[322130063,1712827645548,-407.88528427,0.00038999,4]
[322130064,1712827645570,-398.12018518,0.00038999,7]
[322130065,1712827645595,-7745.0,0.00039,120]
[322130066,1712827645615,-907.7226683,0.00039,2]
[322130067,1712827645634,-202.79667879,0.00039131,4]
[322130068,1712827645654,-224.37829185,0.00039131,4]
[322130069,1712827645675,-398.12018518,0.00039208,7]
[322130070,1712827645695,-398.12018518,0.00039257,7]
[322130071,1712827645715,-557.08377988,0.000394,2]
[322130072,1712827645738,-2121.15236818,0.00039678,4]
[322130073,1712827645758,-1547.60613541,0.00039679,4]
[322130074,1712827645780,-1453.23754076,0.0003968,10]
[322130075,1712827645800,-1453.09236218,0.0003968,10]
[322130076,1712827645820,-207.33993593,0.00039768,4]
[322130077,1712827645843,-155.15259198,0.00039768,4]
[322130078,1712827645864,-154.92253873,0.00039769,4]
[322130079,1712827645884,-169.0,0.00039871,14]
[322130080,1712827645904,-418.85130566,0.000399,4]
[322130081,1712827645925,-557.08377988,0.000399,2]
[322130082,1712827645946,-1000.0,0.00039987,2]
[322130083,1712827645966,-438.44351639,0.00039998,4]
[322130084,1712827645987,-155.10837766,0.00039998,4]
[322130085,1712827646006,-429.55113175,0.00039998,4]
[322130086,1712827646027,-381.00335092,0.00039998,4]
[322130087,1712827646047,-155.21215099,0.00039998,4]
[322130088,1712827646067,-282.09046708,0.00039998,4]
[322130089,1712827646088,-1964.94666504,0.00039999,4]
[322130090,1712827646111,-645.87952637,0.0004,2]
[322130091,1712827646132,-365.9809218,0.0004,2]
[322130173,1712827838490,-323.148072,0.00027397,2]
[322130174,1712827838500,-436.819,0.00032877,30]
[322130175,1712827838509,-323.148072,0.00033165,2]
[322130176,1712827838518,-258.74248845,0.00034418,4]
[322130177,1712827838527,-151.66483245,0.00034419,7]
[322130178,1712827838535,-151.66483245,0.00034623,7]
[322130179,1712827838544,-151.66483245,0.00035661,7]
[322130180,1712827838553,-151.66483245,0.00035958,7]
[322130181,1712827838562,-151.66483245,0.00036175,7]
[322130182,1712827838571,-151.66483245,0.00036418,7]
[322130183,1712827838580,-151.66483245,0.0003688,7]
[322130184,1712827838590,-151.66483245,0.000369,7]
[322130185,1712827838599,-2114.60420043,0.00037,2]
[322130186,1712827838609,-151.66483245,0.00037175,7]
[322130187,1712827838618,-151.66483245,0.00037663,7]
[322130188,1712827838627,-151.66483245,0.00037775,7]
[322130189,1712827838636,-151.66483245,0.00038088,7]
[322130190,1712827838645,-151.66483245,0.00038437,7]
[322130191,1712827838654,-151.66483245,0.0003864,7]
[322130192,1712827838663,-151.66483245,0.00038692,7]
[322130193,1712827838673,-151.66483245,0.00038742,7]
[322130194,1712827838682,-167.06533239,0.00038798,4]
[322130195,1712827838692,-400.0,0.00038799,3]
[322130196,1712827838701,-18977.15208069,0.000388,2]
[322130215,1712827838911,-0.01617506,0.000388,2]
[322130296,1712827840462,-2645.78553868,0.000388,2]
[322130309,1712827840575,-18491.07674602,0.000388,2]
[322130311,1712827840584,-602.21958372,0.00038833,9]
[322130313,1712827840593,-323.148072,0.00038933,2]
[322130315,1712827840603,-151.66483245,0.00038933,7]
[322130317,1712827840612,-1384.7628217,0.0003996,5]
[322130318,1712827840621,-151.0,0.00039999,2]
[322130319,1712827840631,-895.982312,0.00039999,2]
[322130321,1712827840640,-151.0,0.00039999,2]
[322130323,1712827840649,-895.982312,0.00039999,2]
[322130324,1712827840658,-1651.0251297,0.0004,2]
[322130325,1712827840667,-5554.00398122,0.0004,2]
[322130326,1712827840676,-1756.58797177,0.0004,2]
[322130327,1712827840687,-895.175851,0.0004,2]
[322130328,1712827840697,-895.175851,0.0004,2]
[322130329,1712827840706,-151.0,0.0004,2]
[322130330,1712827840715,-151.0,0.0004,2]
[322130331,1712827840725,-151.0,0.0004,2]
[322130332,1712827840734,-151.0,0.0004,2]
[322130333,1712827840743,-151.0,0.0004,2]
[322130334,1712827840752,-260.120485,0.0004,2]
[322130335,1712827840761,-260.120485,0.0004,2]
[322130336,1712827840770,-151.0,0.0004,2]
[322130337,1712827840779,-151.0,0.0004,2]
[322130338,1712827840789,-398.98731199,0.0004,4]
[322130339,1712827840798,-895.982312,0.0004,2]
[322130340,1712827840807,-151.0,0.0004,2]
[322130341,1712827840817,-895.982312,0.0004,2]
[322130342,1712827840826,-151.66483245,0.00040111,30]
[322130343,1712827840836,-200.0,0.00040239,120]
[322130344,1712827840845,-155.49310918,0.00040368,2]
[322130345,1712827840855,-9886.74180024,0.00040368,2]
[322130346,1712827840864,-151.0,0.00040368,2]
[322130347,1712827840874,-260.120485,0.00040368,2]
[322130348,1712827840883,-260.120485,0.00040368,2]
[322130349,1712827840892,-151.0,0.00040368,2]
[322130350,1712827840902,-151.0,0.00040368,2]
[322130351,1712827840911,-895.982312,0.00040368,2]
[322130352,1712827840921,-206.233448,0.00040368,2]
[322130353,1712827840930,-895.982312,0.00040368,2]
[322130354,1712827840941,-500.0,0.00040369,120]
[322130355,1712827840951,-500.0,0.00040369,120]
[322130356,1712827840961,-500.0,0.00040369,120]
[322130357,1712827840971,-196.25,0.00040369,120]
[322130358,1712827840981,-500.0,0.00040369,120]
[322130359,1712827840992,-500.0,0.00040369,120]
[322130360,1712827841002,-500.0,0.00040369,120]
[322130361,1712827841011,-500.0,0.00040369,120]
[322130362,1712827841021,-500.0,0.00040369,120]
[322130363,1712827841031,-500.0,0.00040369,120]
[322130364,1712827841040,-313.19,0.00040369,120]
[322130365,1712827841050,-557.08377988,0.000404,2]
[322130366,1712827841059,-151.66483245,0.00040716,30]
[322130367,1712827841069,-151.66483245,0.00040776,30]
[322130368,1712827841078,-151.66483259,0.000408,30]
[322130369,1712827841088,-887.19168702,0.00040888,4]
[322130370,1712827841097,-548.9788122,0.00040889,4]
[322130371,1712827841107,-151.0,0.00040889,2]
[322130372,1712827841117,-151.707028,0.00040889,2]
[322130373,1712827841127,-895.175851,0.00040889,2]
[322130374,1712827841136,-895.175851,0.00040889,2]
[322130375,1712827841146,-151.0,0.00040889,2]
[322130376,1712827841155,-151.0,0.00040889,2]
[322130377,1712827841164,-151.0,0.00040889,2]
[322130378,1712827841174,-151.0,0.00040889,2]
[322130379,1712827841183,-151.0,0.00040889,2]
[322130380,1712827841193,-260.120485,0.00040889,2]
[322130381,1712827841202,-260.120485,0.00040889,2]
[322130382,1712827841213,-151.0,0.00040889,2]
[322130383,1712827841223,-151.0,0.00040889,2]
[322130384,1712827841234,-895.982312,0.00040889,2]
[322130385,1712827841245,-895.982312,0.00040889,2]
[322130386,1712827841257,-151.0,0.0004089,2]
[322130387,1712827841266,-151.0,0.0004089,2]
[322130388,1712827841275,-244.524545,0.0004089,2]
[322130389,1712827841285,-252.740208,0.0004089,2]
[322130390,1712827841294,-154.93802479,0.00040898,4]
[322130391,1712827841303,-2000.0,0.000409,2]
[322130392,1712827841313,-557.08377988,0.000409,2]
[322130393,1712827841323,-151.0,0.000409,2]
[322130394,1712827841333,-164.86493149,0.000409,2]
[322130395,1712827841343,-1922.19525464,0.000409,2]
[322130396,1712827841352,-151.0,0.000409,2]
[322130397,1712827841362,-151.0,0.000409,2]
[322130398,1712827841371,-563.703894,0.000409,2]
[322130399,1712827841380,-563.703894,0.000409,2]
[322130400,1712827841389,-151.0,0.000409,2]
[322130401,1712827841398,-151.0,0.000409,2]
[322130402,1712827841407,-155.271955,0.00040917,2]
[322130403,1712827841418,-895.175851,0.00040917,2]
[322130404,1712827841427,-895.175851,0.00040917,2]
[322130405,1712827841436,-151.0,0.00040917,2]
[322130406,1712827841445,-151.0,0.00040917,2]
[322130407,1712827841454,-151.0,0.00040917,2]
[322130408,1712827841464,-151.0,0.00040917,2]
[322130409,1712827841473,-151.0,0.00040917,2]
[322130410,1712827841483,-260.120485,0.00040917,2]
[322130411,1712827841567,-260.120485,0.00040917,2]
[322130412,1712827841577,-151.0,0.00040917,2]
[322130413,1712827841586,-895.982312,0.00040917,2]
[322130414,1712827841597,-895.982312,0.00040917,2]
[322130415,1712827841607,-151.0,0.00040917,2]
[322130416,1712827841616,-151.0,0.00040917,2]
[322130417,1712827841625,-538.077611,0.00040917,2]
[322130418,1712827841635,-538.077611,0.00040917,2]
[322130419,1712827841644,-151.0,0.00040917,2]
[322130420,1712827841653,-171.86244929,0.0004097,3]
[322130421,1712827841663,-299.94002595,0.0004098,30]
[322130422,1712827841673,-151.0,0.00040994,2]
[322130423,1712827841682,-375.61039619,0.00040994,31]
[322130424,1712827841691,-221.93903523,0.00040994,31]
[322130425,1712827841700,-168.81482812,0.00040994,31]
[322130426,1712827841710,-500.0,0.00040994,31]
[322130427,1712827841719,-621.7393733,0.00040994,31]
[322130428,1712827841729,-15274.22133367,0.00040995,4]
[322130429,1712827841741,-151.0,0.00040995,2]
[322130430,1712827841751,-895.175851,0.00040995,2]
[322130431,1712827841760,-895.175851,0.00040995,2]
[322130432,1712827841770,-151.0,0.00040995,2]
[322130433,1712827841779,-151.0,0.00040995,2]
[322130434,1712827841788,-151.0,0.00040995,2]
[322130435,1712827841798,-277.299912,0.00040995,2]
[322130436,1712827841807,-151.0,0.00040995,2]
[322130437,1712827841816,-260.120485,0.00040995,2]
[322130438,1712827841826,-260.120485,0.00040995,2]
[322130439,1712827841835,-151.0,0.00040995,2]
[322130440,1712827841845,-244.070496,0.00040995,2]
[322130441,1712827841855,-895.982312,0.00040995,2]
[322130442,1712827841865,-895.982312,0.00040995,2]
[322130443,1712827841875,-151.0,0.00040995,2]
[322130444,1712827841884,-538.077611,0.00040995,2]
[322130445,1712827841893,-538.077611,0.00040995,2]
[322130446,1712827841902,-151.0,0.00040995,2]
[322130447,1712827841912,-563.703894,0.00040995,2]
[322130448,1712827841921,-563.703894,0.00040995,2]
[322130449,1712827841931,-151.0,0.00040995,2]
[322130450,1712827841941,-151.0,0.00040995,2]
[322130451,1712827841950,-151.0,0.00040995,2]
[322130452,1712827841960,-157.55897602,0.00040997,4]
[322130453,1712827841969,-799.7051208,0.00040997,39]
[322130454,1712827841979,-800.55666806,0.00040998,4]
[322130455,1712827841993,-225.41827227,0.00040998,4]
[322130456,1712827842003,-767.7810504,0.00040998,2]
[322130457,1712827842013,-290.83076596,0.00040999,7]
[322130458,1712827842023,-188.93309274,0.00040999,4]
[322130459,1712827842032,-246.01499465,0.00040999,4]
[322130460,1712827842043,-455.76,0.00040999,2]
[322130461,1712827842052,-455.76,0.00040999,2]
[322130462,1712827842062,-455.76,0.00040999,2]
[322130463,1712827842071,-455.76,0.00040999,2]
[322130464,1712827842081,-455.76,0.00040999,2]
[322130465,1712827842091,-455.76,0.00040999,2]
[322130466,1712827842101,-455.76,0.00040999,2]
[322130467,1712827842111,-455.76,0.00040999,2]
[322130468,1712827842122,-455.76,0.00040999,2]
[322130469,1712827842132,-455.76,0.00040999,2]
[322130470,1712827842141,-151.0,0.00040999,2]
[322130471,1712827842151,-151.0,0.00040999,2]
[322130472,1712827842161,-895.175851,0.00040999,2]
[322130473,1712827842171,-895.175851,0.00040999,2]
[322130474,1712827842180,-895.175851,0.00040999,2]
[322130475,1712827842190,-895.175851,0.00040999,2]
[322130476,1712827842199,-151.0,0.00040999,2]
[322130477,1712827842208,-151.0,0.00040999,2]
[322130478,1712827842221,-151.0,0.00040999,2]
[322130479,1712827842230,-233.944691,0.00040999,2]
[322130480,1712827842248,-151.0,0.00040999,2]
[322130481,1712827842258,-151.0,0.00040999,2]
[322130482,1712827842268,-160.0,0.00040999,30]
[322130483,1712827842277,-164.89140023,0.00040999,30]
[322130484,1712827842288,-151.0,0.00040999,2]
[322130485,1712827842298,-151.0,0.00040999,2]
[322130486,1712827842307,-260.120485,0.00040999,2]
[322130487,1712827842318,-260.120485,0.00040999,2]
[322130488,1712827842328,-260.120485,0.00040999,2]
[322130489,1712827842337,-260.120485,0.00040999,2]
[322130490,1712827842346,-151.0,0.00040999,2]
[322130491,1712827842355,-895.982312,0.00040999,2]
[322130492,1712827842364,-895.982312,0.00040999,2]
[322130493,1712827842373,-895.982312,0.00040999,2]
[322130494,1712827842382,-895.982312,0.00040999,2]
[322130495,1712827842391,-538.077611,0.00040999,2]
[322130496,1712827842400,-538.077611,0.00040999,2]
[322130497,1712827842410,-538.077611,0.00040999,2]
[322130498,1712827842419,-538.077611,0.00040999,2]
[322130499,1712827842428,-563.703894,0.00040999,2]
[322130500,1712827842437,-151.0,0.00040999,2]
[322130501,1712827842446,-563.703894,0.00040999,2]
[322130502,1712827842455,-151.0,0.00040999,2]
[322130503,1712827842464,-563.703894,0.00040999,2]
[322130504,1712827842474,-151.0,0.00040999,2]
[322130505,1712827842485,-151.0,0.00040999,2]
[322130506,1712827842494,-563.703894,0.00040999,2]
[322130507,1712827842503,-151.0,0.00040999,2]
[322130508,1712827842513,-151.0,0.00040999,2]
[322130509,1712827842522,-151.0,0.00040999,2]
[322130510,1712827842531,-151.0,0.00040999,2]
[322130511,1712827842540,-88260.49720379,0.00041,5]
[322130512,1712827842549,-22503.9385594,0.00041,30]
[322130560,1712827847978,-2810.73694137,0.00041,30]
[322130561,1712827847995,-29147.36549418,0.00041,30]
[322130583,1712828802079,5455.68809204,0.000272,9]
[322130584,1712828833182,-464.87522551,0.0003579,4]
[322130585,1712828833203,-705.87542886,0.00035791,4]
[322130586,1712828833223,-153.94352923,0.000369,2]
[322130587,1712828833243,-166.666666,0.0003741,2]
[322130588,1712828833362,-2114.60420043,0.00037994,2]
[322130589,1712828833383,-1315.419534,0.00037995,120]
[322130590,1712828833402,-166.666666,0.0003843,2]
[322130591,1712828833421,-150.0,0.000389,2]
[322130592,1712828833440,-166.666666,0.0003945,2]
[322130593,1712828833459,-178.169644,0.00039713,2]
[322130594,1712828833479,-155.52858977,0.00039768,4]
[322130595,1712828833502,-400.0,0.00039768,3]
[322130596,1712828833522,-6950.39804599,0.00039769,4]
[322130597,1712828833541,-40114.03054045,0.0003977,2]
[322130598,1712828833562,-539.39507301,0.00039908,9]
[322130599,1712828833583,-166.666666,0.0004047,2]
[322130600,1712828833603,-153.0,0.00040771,2]
[322130601,1712828833622,-1453.23754076,0.00040795,10]
[322130602,1712828833641,-775.17838062,0.000409,2]
[322130603,1712828854089,-6280.17718322,0.000285,2]
[322130604,1712828950117,-300.0,0.00028499,2]
[322130605,1712828950139,-2045.28587876,0.000285,2]
[322130659,1712829033442,-300.0,0.00028499,2]
[322130662,1712829033452,-21530.8368117,0.000285,2]
[322130665,1712829033461,-420.0,0.00031349,2]
[322130668,1712829033470,-587.0,0.00034484,2]
[322130670,1712829033479,-823.0,0.00037932,2]
[322130673,1712829033490,-15802.60013993,0.00040677,2]
[322130676,1712829033499,-5000.0,0.0004086,2]
[322130679,1712829033508,-9225.13942938,0.000409,2]
[322130681,1712829033517,-2000.0,0.000409,2]
[322130683,1712829033527,-1708.61800408,0.000409,2]
[322130685,1712829033536,-1000.0,0.00040959,2]
[322130687,1712829033545,-286.69012169,0.00040993,4]
[322130690,1712829033559,-11422.96109764,0.00040995,4]
[322130692,1712829033571,-1180.37068,0.00040995,4]
[322130719,1712829038700,-2114.60420043,0.00037,2]
[322130720,1712829038710,-355.72954374,0.00040995,4]
[322130760,1712829040736,-403.17000016,0.00040995,4]
[322130905,1712829046767,-1557.45749973,0.00040995,4]
[322130922,1712830147174,-282.46191731,0.00027396,2]
[322130923,1712830147195,-202.860232,0.00027397,2]
[322130924,1712830147216,-166.666666,0.00027397,2]
[322130925,1712830147236,-264.135506,0.00027397,2]
[322130926,1712830147256,-180.0757902,0.00027467,2]
[322130927,1712830147277,-300.0,0.00027499,2]
[322130928,1712830147297,-300.0,0.00027499,2]
[322130929,1712830147317,-20834.06748885,0.000275,2]
[322130968,1712830232329,-166.666666,0.00027397,2]
[322130969,1712830232339,-211.92093943,0.000275,2]
[322130970,1712830232350,-154.87609912,0.000275,2]
[322130971,1712830232361,-38.76578258,0.00028038,2]
[322131009,1712830238758,-127.90088342,0.00028038,2]
[322131010,1712830238768,-203.96205847,0.00028495,3]
[322131011,1712830238778,-300.0,0.00028497,2]
[322131012,1712830238789,-470.227429,0.00028498,2]
[322131013,1712830238798,-245.13013663,0.00028498,2]
[322131014,1712830238808,-181.0288212,0.00028498,2]
[322131015,1712830238817,-189.55011441,0.00028498,2]
[322131016,1712830238827,-389.88982792,0.00028498,2]
[322131017,1712830238837,-214.57453567,0.00028498,2]
[322131018,1712830238847,-229.44231777,0.00028498,2]
[322131019,1712830238856,-407.69592082,0.00028498,2]
[322131020,1712830238865,-1424.28693407,0.00028498,2]
[322131022,1712830238875,-211.90202068,0.00028498,2]
[322131023,1712830238884,-243.4689664,0.00028498,2]
[322131025,1712830238893,-183.95776832,0.00028498,2]
[322131082,1712830239904,-239.78562846,0.000275,2]
[322131083,1712830239918,-110.19128734,0.00028498,2]
[322131084,1712830239929,-254.76511583,0.00028498,2]
[322131085,1712830239940,-154.98450155,0.00028498,2]
[322131086,1712830239951,-179.64211488,0.00028498,2]
[322131087,1712830239961,-282.31285316,0.00028498,2]
[322131088,1712830239971,-478.53778174,0.00028499,2]
[322131089,1712830239983,-1737.54550739,0.00028499,2]
[322131090,1712830239994,-11413.88089195,0.000285,2]
[322131091,1712830240010,-10805.89628604,0.000285,2]
[322131096,1712830243021,-5711.91270546,0.000285,2]
[322131097,1712830243030,-1667.90785893,0.000285,2]
[322131127,1712830386836,150.0,0.0002,2]
[322131128,1712830405729,154.87609912,0.0002,2]
[322131129,1712830411951,385.03819322,0.0002,2]
[322131130,1712830421322,691.16124462,0.0002,2]
[322131131,1712830421805,239.78562846,0.0002,2]
[322131132,1712830425769,155.77380623,0.0002,2]
[322131133,1712830425834,385.03819322,0.0002,2]
[322131135,1712830439226,691.16124462,0.0002,2]
[322131136,1712830441923,382.76303475,0.0002,2]
[322131137,1712830443812,364.65467566,0.0002,2]
[322131138,1712830459224,691.16124462,0.0002,2]
[322131139,1712830475257,691.16124462,0.0002,2]
[322131140,1712830497235,688.31888857,0.0002,2]
[322131143,1712831251126,-1688.19200548,0.00027,2]
[322131144,1712831363162,-5228.98891075,0.00027,2]
[322131145,1712831363185,-295.630079,0.00027397,2]
[322131146,1712831363209,-197.43353608,0.00028038,2]
[322131147,1712831363237,-300.0,0.00028499,2]
[322131148,1712831363264,-300.0,0.00028499,2]
[322131149,1712831363290,-6277.74785207,0.000285,2]
[322131150,1712831363315,-728.37141638,0.000285,2]
[322131151,1712831363337,-2001.65,0.000298,2]
[322131152,1712831363360,-192.0,0.00030763,2]
[322131153,1712831363380,-186.8977521,0.00030917,2]
[322131154,1712831363404,-420.0,0.00031349,2]
[322131155,1712831363425,-1219.12054149,0.00032,2]
[322131156,1712831363446,-190.87429094,0.00032245,4]
[322131157,1712831363469,-166.666666,0.00032246,2]
[322131158,1712831363491,-6934.0,0.00032342,30]
[322131159,1712831363515,-417.9093899,0.00033025,2]
[322131160,1712831363537,-166.666666,0.00033125,2]
[322131161,1712831363557,-202.860232,0.00033165,2]
[322131162,1712831363579,-264.135506,0.00033165,2]
[322131163,1712831363600,-295.630079,0.00033165,2]
[322131164,1712831363621,-177.645257,0.00033849,2]
[322131165,1712831363642,-166.666666,0.00034004,2]
[322131166,1712831363665,-587.0,0.00034484,2]
[322131167,1712831363685,-166.666666,0.00034883,2]
[322131168,1712831363710,-986.56465,0.00035616,120]
[322131169,1712831363732,-166.666666,0.00035763,2]
[322131170,1712831363752,-766.06388978,0.00035998,30]
[322131171,1712831363773,-166.666666,0.00036642,2]
[322131319,1712831438165,-702.57,0.00035982,2]
[322131389,1712831440208,-1155.56463587,0.00035982,2]
[322131391,1712831440217,-2114.60420043,0.00037,2]
[322131393,1712831440231,-190.87429094,0.00037995,4]
[322131395,1712831440241,-154.92253873,0.00037996,4]
[322131397,1712831440250,-202.860232,0.00038933,2]
[322131399,1712831440264,-264.135506,0.00038933,2]
[322131401,1712831440273,-295.630079,0.00038933,2]
[322131403,1712831440283,-400.0,0.00039899,3]
[322131404,1712831440294,-970.30157705,0.000399,2]
[322131406,1712831440304,-1518.7715592,0.000399,2]
[322131408,1712831440313,-180.056249,0.00039996,4]
[322131409,1712831440322,-948.53262008,0.00039996,2]
[322131410,1712831440332,-213.87965055,0.00039998,4]
[322131411,1712831440343,-1310.36081625,0.00039998,7]
[322131412,1712831440353,-398.65436452,0.00039998,4]
[322131413,1712831440362,-16874.47743891,0.00039998,4]
[322131415,1712831440372,-326.58964384,0.00039998,4]
[322131416,1712831440381,-82.85756963,0.00039998,4]
[322131438,1712831481785,540.71955596,0.00032961,2]
[322131439,1712831481808,187.83842981,0.00032961,2]
[322131453,1712832553182,-2122.20004462,0.00027393,2]
[322131454,1712832553203,-766.06388978,0.00027394,5]
[322131455,1712832553225,-172.431197,0.00027397,2]
[322131456,1712832553245,-180.408073,0.00030961,2]
[322131457,1712832553266,-400.0,0.00031971,2]
[322131458,1712832553286,-28518.35731565,0.00031972,2]
[322131459,1712832569114,-6859.43857015,0.00031972,2]
[322131460,1712832569136,-411.33934088,0.00032398,6]
[322131461,1712832569294,-893.21851256,0.000325,15]
[322131462,1712832569314,-172.431197,0.00033165,2]
[322131463,1712832569334,-170.6229365,0.00034771,7]
[322131464,1712832569354,-560.0,0.00035168,2]
[322131465,1712832569373,-739.923487,0.00035616,120]
[322131466,1712832569393,-1029.2605045,0.00035998,30]
[322131467,1712832569415,-292.617064,0.00036197,2]
[322131468,1712832569435,-83.48807895,0.00036867,7]
[322131509,1712832638270,-235.96724543,0.00030298,2]
[322131510,1712832638280,-762.05786894,0.00031972,2]
[322131512,1712832638736,-1283.22800982,0.00031972,2]
[322131514,1712832638750,-235.96724543,0.00035298,2]
[322131517,1712832638762,-440.4742059,0.00035998,30]
[322131521,1712832638771,-87.13485755,0.00036867,7]
[322131524,1712832638781,-2114.60420043,0.00037,2]
[322131527,1712832638790,-379.8005954,0.0003784,2]
[322131530,1712832638799,-170.6229365,0.00037871,7]
[322131533,1712832638809,-175.620048,0.00038183,2]
[322131536,1712832638819,-172.431197,0.00038933,2]
[322131539,1712832638828,-907.7226683,0.00039,2]
[322131541,1712832638836,-170.6229365,0.00039448,7]
[322131543,1712832638846,-1453.23754076,0.00039798,10]
[322131545,1712832638855,-170.6229365,0.00039846,7]
[322131547,1712832638864,-400.0,0.00039899,3]
[322131549,1712832638873,-1114.16755976,0.000399,2]
[322131551,1712832638883,-1000.0,0.00039987,2]
[322131553,1712832638892,-199.29995852,0.00039997,4]
[322131555,1712832638902,-132.43639664,0.00039998,4]
[322131557,1712832638912,-464.42260257,0.00039998,4]
[322131559,1712832638922,-155.01550155,0.00039998,4]
[322131561,1712832638931,-6928.37908532,0.00039998,4]
[322131563,1712832638940,-155.0,0.00039998,4]
[322131565,1712832638949,-155.15259198,0.00039998,4]
[322131566,1712832638958,-202.79667879,0.00039998,4]
[322131568,1712832638969,-1547.60613541,0.00039998,4]
[322131570,1712832638979,-155.21215099,0.00039998,4]